[Event "Titled Tuesday Blitz May 11 2021"]
[White "Praggnanandhaa R"]
[Black "Kobalia, Mikhail"]
[WhiteFideId "25059530"]
[BlackFideId "4119150"]
[WhiteElo "2555"]
[BlackElo "2569"]
[Result "1/2-1/2"]
[Round "07"]
[TimeControl "180+1"]
[Date "2021.05.11"]
[WhiteClock "0:00:06"]
[BlackClock "0:00:02"]

1. d4 {[%clk 0:03:00]}  d5 {[%clk 0:02:59]} 2. Bf4 {[%clk 0:03:00]}  c5 {[%clk 0:02:58]} 3. e3 {[%clk 0:03:00]}  Nc6 {[%clk 0:02:58]} 4. Nf3 {[%clk 0:02:58]}  Nf6 {[%clk 0:02:56]} 5. Nbd2 {[%clk 0:02:57]}  cxd4 {[%clk 0:02:55]} 6. exd4 {[%clk 0:02:57]}  Bf5 {[%clk 0:02:55]} 7. Bb5 {[%clk 0:02:55]}  Bd7 {[%clk 0:02:45]} 8. c3 {[%clk 0:02:51]}  a6 {[%clk 0:02:43]} 9. Bd3 {[%clk 0:02:50]}  Bg4 {[%clk 0:02:43]} 10. Qb3 {[%clk 0:02:37]}  Na5 {[%clk 0:02:39]} 11. Qc2 {[%clk 0:02:36]}  e6 {[%clk 0:02:35]} 12. Ne5 {[%clk 0:02:26]}  Nc6 {[%clk 0:02:27]} 13. Qb3 {[%clk 0:01:57]}  Nxe5 {[%clk 0:02:16]} 14. dxe5 {[%clk 0:01:48]}  Nd7 {[%clk 0:02:16]} 15. Qxb7 {[%clk 0:01:42]}  Be7 {[%clk 0:02:11]} 16. Qb3 {[%clk 0:01:33]}  Bg5 {[%clk 0:02:07]} 17. Bg3 {[%clk 0:01:20]}  Bxd2+ {[%clk 0:02:05]} 18. Kxd2 {[%clk 0:01:21]}  Nc5 {[%clk 0:02:01]} 19. Qa3 {[%clk 0:01:16]}  Nxd3 {[%clk 0:02:01]} 20. Kxd3 {[%clk 0:01:17]}  Qb6 {[%clk 0:01:54]} 21. Qa4+ {[%clk 0:01:07]}  Qb5+ {[%clk 0:01:51]} 22. Qxb5+ {[%clk 0:01:07]}  axb5 {[%clk 0:01:52]} 23. Bf4 {[%clk 0:01:00]}  Kd7 {[%clk 0:01:48]} 24. Be3 {[%clk 0:00:58]}  h5 {[%clk 0:01:47]} 25. h4 {[%clk 0:00:45]}  Ra4 {[%clk 0:01:43]} 26. Bd4 {[%clk 0:00:43]}  Rg8 {[%clk 0:01:29]} 27. a3 {[%clk 0:00:42]}  Bf5+ {[%clk 0:01:26]} 28. Kd2 {[%clk 0:00:42]}  Kc6 {[%clk 0:01:17]} 29. Rae1 {[%clk 0:00:42]}  Kd7 {[%clk 0:01:11]} 30. Re3 {[%clk 0:00:42]}  Rc8 {[%clk 0:01:11]} 31. Rc1 {[%clk 0:00:38]}  Rc6 {[%clk 0:01:04]} 32. Rg3 {[%clk 0:00:38]}  Bg6 {[%clk 0:01:02]} 33. Re3 {[%clk 0:00:36]}  Bf5 {[%clk 0:01:01]} 34. f3 {[%clk 0:00:36]}  Rc8 {[%clk 0:01:00]} 35. Re2 {[%clk 0:00:36]}  Rg8 {[%clk 0:00:57]} 36. Ke3 {[%clk 0:00:36]}  Rc8 {[%clk 0:00:48]} 37. Rg1 {[%clk 0:00:34]}  Rh8 {[%clk 0:00:44]} 38. g4 {[%clk 0:00:33]}  Bg6 {[%clk 0:00:43]} 39. Rh2 {[%clk 0:00:33]}  Rc4 {[%clk 0:00:43]} 40. Kf4 {[%clk 0:00:28]}  Ra4 {[%clk 0:00:39]} 41. Ra1 {[%clk 0:00:25]}  Ra6 {[%clk 0:00:37]} 42. Rg1 {[%clk 0:00:22]}  Ra4 {[%clk 0:00:37]} 43. Ke3 {[%clk 0:00:17]}  Rc4 {[%clk 0:00:36]} 44. f4 {[%clk 0:00:16]}  hxg4 {[%clk 0:00:34]} 45. Rxg4 {[%clk 0:00:17]}  Rh7 {[%clk 0:00:33]} 46. Rg5 {[%clk 0:00:16]}  Bf5 {[%clk 0:00:29]} 47. h5 {[%clk 0:00:16]}  Rc8 {[%clk 0:00:27]} 48. Rhg2 {[%clk 0:00:13]}  Rg8 {[%clk 0:00:23]} 49. Bc5 {[%clk 0:00:12]}  Kc6 {[%clk 0:00:22]} 50. Bb4 {[%clk 0:00:11]}  g6 {[%clk 0:00:20]} 51. Be7 {[%clk 0:00:07]}  Ra8 {[%clk 0:00:13]} 52. hxg6 {[%clk 0:00:06]}  fxg6 {[%clk 0:00:13]} 53. Bf6 {[%clk 0:00:05]}  Rh3+ {[%clk 0:00:11]} 54. R5g3 {[%clk 0:00:05]}  Rxg3+ {[%clk 0:00:11]} 55. Rxg3 {[%clk 0:00:06]}  Ra7 {[%clk 0:00:12]} 56. Bg5 {[%clk 0:00:04]}  Rh7 {[%clk 0:00:12]} 57. Rg2 {[%clk 0:00:04]}  Rh3+ {[%clk 0:00:11]} 58. Kd2 {[%clk 0:00:04]}  Kc5 {[%clk 0:00:11]} 59. Be7+ {[%clk 0:00:04]}  Kc4 {[%clk 0:00:11]} 60. Bb4 {[%clk 0:00:03]}  Kb3 {[%clk 0:00:11]} 61. Ke1 {[%clk 0:00:03]}  Rh1+ {[%clk 0:00:10]} 62. Kf2 {[%clk 0:00:02]}  Kxb2 {[%clk 0:00:10]} 63. Kg3+ {[%clk 0:00:03]}  Kb3 {[%clk 0:00:09]} 64. Rh2 {[%clk 0:00:03]}  Rg1+ {[%clk 0:00:07]} 65. Rg2 {[%clk 0:00:04]}  Rf1 {[%clk 0:00:07]} 66. Rf2 {[%clk 0:00:04]}  Rd1 {[%clk 0:00:05]} 67. Rh2 {[%clk 0:00:03]}  Rd3+ {[%clk 0:00:04]} 68. Kh4 {[%clk 0:00:04]}  Rf3 {[%clk 0:00:03]} 69. Kg5 {[%clk 0:00:04]}  Rg3+ {[%clk 0:00:03]} 70. Kf6 {[%clk 0:00:04]}  Rg4 {[%clk 0:00:04]} 71. Rf2 {[%clk 0:00:04]}  Kc4 {[%clk 0:00:04]} 72. Ke7 {[%clk 0:00:05]}  Kd3 {[%clk 0:00:04]} 73. Kd6 {[%clk 0:00:03]}  Ke3 {[%clk 0:00:04]} 74. Bc5+ {[%clk 0:00:02]}  Ke4 {[%clk 0:00:04]} 75. Kc6 {[%clk 0:00:03]}  Rxf4 {[%clk 0:00:04]} 76. Rxf4+ {[%clk 0:00:02]}  Kxf4 {[%clk 0:00:04]} 77. Kxb5 {[%clk 0:00:02]}  Kxe5 {[%clk 0:00:04]} 78. a4 {[%clk 0:00:03]}  Bd3+ {[%clk 0:00:04]} 79. Kb6 {[%clk 0:00:03]}  Ke4 {[%clk 0:00:04]} 80. a5 {[%clk 0:00:04]}  e5 {[%clk 0:00:04]} 81. a6 {[%clk 0:00:03]}  Bxa6 {[%clk 0:00:03]} 82. Kxa6 {[%clk 0:00:04]}  g5 {[%clk 0:00:03]} 83. Kb5 {[%clk 0:00:04]}  g4 {[%clk 0:00:03]} 84. Bg1 {[%clk 0:00:04]}  g3 {[%clk 0:00:02]} 85. Kc5 {[%clk 0:00:04]}  g2 {[%clk 0:00:01]} 86. Kb4 {[%clk 0:00:03]}  d4 {[%clk 0:00:01]} 87. cxd4 {[%clk 0:00:03]}  exd4 {[%clk 0:00:01]} 88. Kc4 {[%clk 0:00:03]}  d3 {[%clk 0:00:01]} 89. Kc3 {[%clk 0:00:04]}  Kf3 {[%clk 0:00:01]} 90. Kxd3 {[%clk 0:00:04]}  Kf4 {[%clk 0:00:01]} 91. Ke2 {[%clk 0:00:05]}  Kf5 {[%clk 0:00:01]} 92. Kf2 {[%clk 0:00:05]}  Ke6 {[%clk 0:00:02]} 93. Kxg2 {[%clk 0:00:06]} 1/2-1/2


[Site "https://www.chess.com"]

[Event "Titled Tuesday Blitz May 11 2021"]
[White "Quparadze, Giga"]
[Black "Sethuraman, S.P."]
[WhiteFideId "13602250"]
[BlackFideId "5021596"]
[WhiteElo "2658"]
[BlackElo "2477"]
[Result "1-0"]
[Round "07"]
[TimeControl "180+1"]
[Date "2021.05.11"]
[WhiteClock "0:01:48"]
[BlackClock "0:00:57"]

1. e4 {[%clk 0:03:00]}  e5 {[%clk 0:02:59]} 2. Nf3 {[%clk 0:03:00]}  Nc6 {[%clk 0:02:59]} 3. Bb5 {[%clk 0:02:59]}  a6 {[%clk 0:02:59]} 4. Ba4 {[%clk 0:02:59]}  Nf6 {[%clk 0:03:00]} 5. Nc3 {[%clk 0:02:59]}  b5 {[%clk 0:02:59]} 6. Bb3 {[%clk 0:02:58]}  Bc5 {[%clk 0:02:59]} 7. d3 {[%clk 0:02:56]}  h6 {[%clk 0:02:57]} 8. Nd5 {[%clk 0:02:54]}  d6 {[%clk 0:02:55]} 9. c3 {[%clk 0:02:54]}  Rb8 {[%clk 0:02:50]} 10. d4 {[%clk 0:02:51]}  Ba7 {[%clk 0:02:42]} 11. O-O {[%clk 0:02:44]}  O-O {[%clk 0:02:37]} 12. Be3 {[%clk 0:02:43]}  Nxe4 {[%clk 0:02:24]} 13. a4 {[%clk 0:02:39]}  b4 {[%clk 0:02:16]} 14. dxe5 {[%clk 0:02:34]}  Bxe3 {[%clk 0:02:12]} 15. fxe3 {[%clk 0:02:30]}  bxc3 {[%clk 0:01:51]} 16. Qc2 {[%clk 0:02:13]}  Nc5 {[%clk 0:01:47]} 17. Nf6+ {[%clk 0:02:11]}  Qxf6 {[%clk 0:01:16]} 18. exf6 {[%clk 0:02:04]}  Rxb3 {[%clk 0:01:09]} 19. fxg7 {[%clk 0:02:04]}  Re8 {[%clk 0:01:09]} 20. bxc3 {[%clk 0:02:01]}  Rxe3 {[%clk 0:01:07]} 21. Nd4 {[%clk 0:02:00]}  Rbxc3 {[%clk 0:01:03]} 22. Qf2 {[%clk 0:01:59]}  Ne5 {[%clk 0:01:03]} 23. Qf6 {[%clk 0:01:53]}  Bd7 {[%clk 0:00:57]} 24. Rab1 {[%clk 0:01:48]} 1-0


[Site "https://www.chess.com"]

[Event "Titled Tuesday Blitz May 11 2021"]
[White "Sasikiran, Krishnan"]
[Black "Borsuk, Konstantin"]
[WhiteFideId "5004985"]
[BlackFideId "14113406"]
[WhiteElo "2552"]
[BlackElo "2363"]
[Result "1-0"]
[Round "07"]
[TimeControl "180+1"]
[Date "2021.05.11"]
[WhiteClock "0:00:44"]
[BlackClock "0:00:16"]

1. e4 {[%clk 0:03:00]}  e6 {[%clk 0:02:59]} 2. d4 {[%clk 0:03:00]}  d5 {[%clk 0:02:59]} 3. Nc3 {[%clk 0:03:00]}  Bb4 {[%clk 0:02:59]} 4. exd5 {[%clk 0:03:00]}  exd5 {[%clk 0:02:59]} 5. Bd3 {[%clk 0:03:00]}  Nf6 {[%clk 0:02:52]} 6. Ne2 {[%clk 0:02:59]}  c6 {[%clk 0:02:43]} 7. O-O {[%clk 0:02:55]}  O-O {[%clk 0:02:34]} 8. Bf4 {[%clk 0:02:53]}  Nbd7 {[%clk 0:02:30]} 9. a3 {[%clk 0:02:48]}  Ba5 {[%clk 0:02:30]} 10. Re1 {[%clk 0:02:42]}  Re8 {[%clk 0:02:30]} 11. Qd2 {[%clk 0:02:34]}  Nf8 {[%clk 0:02:29]} 12. Ng3 {[%clk 0:02:26]}  Ne6 {[%clk 0:02:06]} 13. Be5 {[%clk 0:02:23]}  Nd7 {[%clk 0:01:46]} 14. b4 {[%clk 0:02:19]}  Nxe5 {[%clk 0:01:44]} 15. dxe5 {[%clk 0:02:18]}  Bc7 {[%clk 0:01:29]} 16. f4 {[%clk 0:01:54]}  Qh4 {[%clk 0:01:20]} 17. Rf1 {[%clk 0:01:28]}  g6 {[%clk 0:01:18]} 18. Rae1 {[%clk 0:01:21]}  Ng7 {[%clk 0:01:04]} 19. Nce2 {[%clk 0:01:15]}  b6 {[%clk 0:00:47]} 20. Nd4 {[%clk 0:01:10]}  c5 {[%clk 0:00:46]} 21. Nf3 {[%clk 0:01:08]}  Qd8 {[%clk 0:00:44]} 22. f5 {[%clk 0:00:54]}  c4 {[%clk 0:00:35]} 23. f6 {[%clk 0:00:47]}  cxd3 {[%clk 0:00:18]} 24. Qh6 {[%clk 0:00:45]}  Ne6 {[%clk 0:00:16]} 25. Ng5 {[%clk 0:00:44]} 1-0


[Site "https://www.chess.com"]

[Event "Titled Tuesday Blitz May 11 2021"]
[White "Sevian, Samuel"]
[Black "Holt, Conrad"]
[WhiteFideId "2040506"]
[BlackFideId "2034387"]
[WhiteElo "2981"]
[BlackElo "2586"]
[Result "1/2-1/2"]
[Round "07"]
[TimeControl "180+1"]
[Date "2021.05.11"]
[WhiteClock "0:00:07"]
[BlackClock "0:00:06"]

1. e4 {[%clk 0:03:00]}  e6 {[%clk 0:03:00]} 2. d4 {[%clk 0:03:00]}  d5 {[%clk 0:03:00]} 3. Bd3 {[%clk 0:02:57]}  dxe4 {[%clk 0:02:59]} 4. Bxe4 {[%clk 0:02:58]}  Nf6 {[%clk 0:02:58]} 5. Bf3 {[%clk 0:02:59]}  c5 {[%clk 0:02:58]} 6. Ne2 {[%clk 0:03:00]}  Nc6 {[%clk 0:02:58]} 7. Be3 {[%clk 0:03:00]}  cxd4 {[%clk 0:02:59]} 8. Nxd4 {[%clk 0:03:01]}  Ne5 {[%clk 0:02:59]} 9. Nc3 {[%clk 0:03:02]}  Be7 {[%clk 0:02:59]} 10. Qe2 {[%clk 0:03:02]}  Nxf3+ {[%clk 0:02:57]} 11. Qxf3 {[%clk 0:03:02]}  O-O {[%clk 0:02:56]} 12. O-O-O {[%clk 0:03:01]}  Qa5 {[%clk 0:02:55]} 13. g4 {[%clk 0:03:01]}  Rd8 {[%clk 0:02:45]} 14. g5 {[%clk 0:02:56]}  Nd5 {[%clk 0:02:38]} 15. Nf5 {[%clk 0:02:56]}  Bf8 {[%clk 0:02:06]} 16. Rhg1 {[%clk 0:02:26]}  exf5 {[%clk 0:01:25]} 17. Nxd5 {[%clk 0:02:15]}  Be6 {[%clk 0:01:23]} 18. Nc3 {[%clk 0:00:38]}  Rdc8 {[%clk 0:01:10]} 19. Bd4 {[%clk 0:00:36]}  Bxa2 {[%clk 0:01:06]} 20. Qxb7 {[%clk 0:00:35]}  Rcb8 {[%clk 0:00:42]} 21. Qc6 {[%clk 0:00:35]}  Be6 {[%clk 0:00:31]} 22. Qa4 {[%clk 0:00:35]}  Qc7 {[%clk 0:00:26]} 23. Qa6 {[%clk 0:00:31]}  Rb4 {[%clk 0:00:18]} 24. Rge1 {[%clk 0:00:22]}  Bc4 {[%clk 0:00:15]} 25. Qa1 {[%clk 0:00:21]}  Qb7 {[%clk 0:00:14]} 26. b3 {[%clk 0:00:20]}  Be6 {[%clk 0:00:13]} 27. Rd2 {[%clk 0:00:11]}  a5 {[%clk 0:00:13]} 28. Na4 {[%clk 0:00:10]}  Qc6 {[%clk 0:00:12]} 29. Qc3 {[%clk 0:00:09]}  Qb5 {[%clk 0:00:07]} 30. Re5 {[%clk 0:00:07]}  Qb8 {[%clk 0:00:06]} 31. Bc5 {[%clk 0:00:07]}  Rxa4 {[%clk 0:00:05]} 32. bxa4 {[%clk 0:00:06]}  Qc7 {[%clk 0:00:06]} 33. Bd4 {[%clk 0:00:04]}  Qe7 {[%clk 0:00:05]} 34. f4 {[%clk 0:00:04]}  Rb8 {[%clk 0:00:04]} 35. Rb5 {[%clk 0:00:04]}  Ra8 {[%clk 0:00:03]} 36. Qb2 {[%clk 0:00:04]}  Qe8 {[%clk 0:00:03]} 37. Kb1 {[%clk 0:00:04]}  Bd7 {[%clk 0:00:04]} 38. Re5 {[%clk 0:00:04]}  Be6 {[%clk 0:00:04]} 39. Rd3 {[%clk 0:00:04]}  Qxa4 {[%clk 0:00:04]} 40. Bc5 {[%clk 0:00:02]}  Qc6 {[%clk 0:00:03]} 41. Bxf8 {[%clk 0:00:02]}  Rxf8 {[%clk 0:00:04]} 42. Rxa5 {[%clk 0:00:02]}  Qh1+ {[%clk 0:00:04]} 43. Qc1 {[%clk 0:00:03]}  Rb8+ {[%clk 0:00:04]} 44. Rb3 {[%clk 0:00:03]}  Qxc1+ {[%clk 0:00:04]} 45. Kxc1 {[%clk 0:00:04]}  Bxb3 {[%clk 0:00:04]} 46. cxb3 {[%clk 0:00:04]}  h6 {[%clk 0:00:05]} 47. gxh6 {[%clk 0:00:04]}  Rxb3 {[%clk 0:00:02]} 48. hxg7 {[%clk 0:00:04]}  Kxg7 {[%clk 0:00:03]} 49. Rxf5 {[%clk 0:00:03]}  Rh3 {[%clk 0:00:03]} 50. Rg5+ {[%clk 0:00:04]}  Kf6 {[%clk 0:00:03]} 51. Rg2 {[%clk 0:00:05]}  Kf5 {[%clk 0:00:03]} 52. Rf2 {[%clk 0:00:05]}  Kg4 {[%clk 0:00:03]} 53. Kd2 {[%clk 0:00:05]}  f5 {[%clk 0:00:04]} 54. Ke2 {[%clk 0:00:05]}  Ra3 {[%clk 0:00:04]} 55. Kf1 {[%clk 0:00:06]}  Kh3 {[%clk 0:00:04]} 56. Rc2 {[%clk 0:00:05]}  Kg4 {[%clk 0:00:03]} 57. Kg2 {[%clk 0:00:04]}  Kxf4 {[%clk 0:00:03]} 58. Rc4+ {[%clk 0:00:05]}  Ke3 {[%clk 0:00:03]} 59. Kg3 {[%clk 0:00:05]}  Ra5 {[%clk 0:00:02]} 60. Rc8 {[%clk 0:00:04]}  Ra6 {[%clk 0:00:03]} 61. Re8+ {[%clk 0:00:04]}  Kd4 {[%clk 0:00:03]} 62. Kf4 {[%clk 0:00:04]}  Rh6 {[%clk 0:00:03]} 63. Re2 {[%clk 0:00:04]}  Rh5 {[%clk 0:00:03]} 64. Rd2+ {[%clk 0:00:04]}  Kc3 {[%clk 0:00:03]} 65. Rg2 {[%clk 0:00:04]}  Kd3 {[%clk 0:00:04]} 66. Ra2 {[%clk 0:00:04]}  Kd4 {[%clk 0:00:04]} 67. Rf2 {[%clk 0:00:04]}  Kd3 {[%clk 0:00:04]} 68. Rf3+ {[%clk 0:00:04]}  Kd4 {[%clk 0:00:04]} 69. h3 {[%clk 0:00:05]}  Kd5 {[%clk 0:00:04]} 70. Re3 {[%clk 0:00:05]}  Kd4 {[%clk 0:00:05]} 71. Ra3 {[%clk 0:00:05]}  Kd5 {[%clk 0:00:03]} 72. Rg3 {[%clk 0:00:05]}  Kd4 {[%clk 0:00:03]} 73. Rf3 {[%clk 0:00:05]}  Kd5 {[%clk 0:00:04]} 74. Re3 {[%clk 0:00:05]}  Kd4 {[%clk 0:00:04]} 75. Ra3 {[%clk 0:00:05]}  Kd5 {[%clk 0:00:04]} 76. Kg3 {[%clk 0:00:06]}  Ke5 {[%clk 0:00:04]} 77. Ra6 {[%clk 0:00:06]}  Rg5+ {[%clk 0:00:04]} 78. Kf3 {[%clk 0:00:06]}  Rg8 {[%clk 0:00:05]} 79. h4 {[%clk 0:00:06]}  Rc8 {[%clk 0:00:04]} 80. Ra5+ {[%clk 0:00:06]}  Kf6 {[%clk 0:00:05]} 81. Ra6+ {[%clk 0:00:06]}  Ke5 {[%clk 0:00:05]} 82. Ra5+ {[%clk 0:00:07]}  Kf6 {[%clk 0:00:06]} 83. Ra6+ {[%clk 0:00:07]}  Ke5 {[%clk 0:00:06]} 1/2-1/2


[Site "https://www.chess.com"]

[Event "Titled Tuesday Blitz May 11 2021"]
[White "Shkapenko, Pavel"]
[Black "Acor, Corey"]
[WhiteFideId "4151933"]
[BlackFideId "2024861"]
[WhiteElo "2386"]
[BlackElo "2805"]
[Result "0-1"]
[Round "07"]
[TimeControl "180+1"]
[Date "2021.05.11"]
[WhiteClock "0:01:02"]
[BlackClock "0:01:05"]

1. e4 {[%clk 0:03:00]}  e5 {[%clk 0:02:58]} 2. Nf3 {[%clk 0:03:00]}  Nc6 {[%clk 0:02:58]} 3. Bc4 {[%clk 0:03:00]}  Bc5 {[%clk 0:02:57]} 4. c3 {[%clk 0:03:01]}  Nf6 {[%clk 0:02:57]} 5. d4 {[%clk 0:03:01]}  exd4 {[%clk 0:02:57]} 6. b4 {[%clk 0:03:02]}  Bb6 {[%clk 0:02:53]} 7. e5 {[%clk 0:03:02]}  d5 {[%clk 0:02:43]} 8. exf6 {[%clk 0:03:01]}  dxc4 {[%clk 0:02:43]} 9. Qe2+ {[%clk 0:03:02]}  Be6 {[%clk 0:02:42]} 10. b5 {[%clk 0:03:02]}  d3 {[%clk 0:02:33]} 11. Qe4 {[%clk 0:03:01]}  Nb4 {[%clk 0:02:08]} 12. O-O {[%clk 0:02:48]}  Nc2 {[%clk 0:02:00]} 13. fxg7 {[%clk 0:02:48]}  Rg8 {[%clk 0:01:58]} 14. Bg5 {[%clk 0:02:31]}  Qd5 {[%clk 0:01:58]} 15. Qxh7 {[%clk 0:02:30]}  Kd7 {[%clk 0:01:41]} 16. Nbd2 {[%clk 0:02:23]}  Bf5 {[%clk 0:01:41]} 17. Qh6 {[%clk 0:02:18]}  Rae8 {[%clk 0:01:40]} 18. Rab1 {[%clk 0:01:52]}  Bc5 {[%clk 0:01:29]} 19. Bf6 {[%clk 0:01:32]}  Ne3 {[%clk 0:01:12]} 20. Nd4 {[%clk 0:01:02]}  Qxg2# {[%clk 0:01:05]} 0-1


[Site "https://www.chess.com"]

[Event "Titled Tuesday Blitz May 11 2021"]
[White "Zubov, Alexander"]
[Black "Murzin, Volodar"]
[WhiteFideId "14109409"]
[BlackFideId "44155573"]
[WhiteElo "2740"]
[BlackElo "2541"]
[Result "1-0"]
[Round "07"]
[TimeControl "180+1"]
[Date "2021.05.11"]
[WhiteClock "0:00:03"]
[BlackClock "0:00:02"]

1. d4 {[%clk 0:02:59]}  Nf6 {[%clk 0:02:59]} 2. Nf3 {[%clk 0:02:59]}  g6 {[%clk 0:02:59]} 3. Nbd2 {[%clk 0:02:58]}  Bg7 {[%clk 0:02:59]} 4. e4 {[%clk 0:02:58]}  d6 {[%clk 0:03:00]} 5. Bd3 {[%clk 0:02:58]}  O-O {[%clk 0:03:00]} 6. O-O {[%clk 0:02:57]}  Nc6 {[%clk 0:02:57]} 7. Re1 {[%clk 0:02:55]}  e5 {[%clk 0:02:57]} 8. c3 {[%clk 0:02:55]}  Bg4 {[%clk 0:02:43]} 9. h3 {[%clk 0:02:52]}  Bxf3 {[%clk 0:02:39]} 10. Nxf3 {[%clk 0:02:52]}  Nd7 {[%clk 0:02:39]} 11. Bg5 {[%clk 0:02:52]}  f6 {[%clk 0:02:32]} 12. Bd2 {[%clk 0:02:39]}  Kh8 {[%clk 0:02:31]} 13. Qb3 {[%clk 0:02:29]}  Nb6 {[%clk 0:02:24]} 14. a4 {[%clk 0:02:22]}  a5 {[%clk 0:02:21]} 15. Bb5 {[%clk 0:02:15]}  Ne7 {[%clk 0:02:16]} 16. Rad1 {[%clk 0:02:03]}  c6 {[%clk 0:02:10]} 17. Bf1 {[%clk 0:02:01]}  Qc7 {[%clk 0:02:09]} 18. Be3 {[%clk 0:01:54]}  Nbc8 {[%clk 0:01:56]} 19. dxe5 {[%clk 0:01:33]}  dxe5 {[%clk 0:01:42]} 20. Qe6 {[%clk 0:01:31]}  Rd8 {[%clk 0:01:32]} 21. Bg5 {[%clk 0:00:45]}  Rd6 {[%clk 0:01:30]} 22. Qf7 {[%clk 0:00:44]}  Nb6 {[%clk 0:00:16]} 23. Be3 {[%clk 0:00:22]}  Nxa4 {[%clk 0:00:16]} 24. Qa2 {[%clk 0:00:12]}  b5 {[%clk 0:00:15]} 25. c4 {[%clk 0:00:12]}  Rb8 {[%clk 0:00:10]} 26. c5 {[%clk 0:00:10]}  Rxd1 {[%clk 0:00:08]} 27. Rxd1 {[%clk 0:00:11]}  Rd8 {[%clk 0:00:08]} 28. Rxd8+ {[%clk 0:00:07]}  Qxd8 {[%clk 0:00:09]} 29. h4 {[%clk 0:00:05]}  Qg8 {[%clk 0:00:09]} 30. b3 {[%clk 0:00:05]}  h5 {[%clk 0:00:07]} 31. Qc2 {[%clk 0:00:04]}  b4 {[%clk 0:00:02]} 32. bxa4 {[%clk 0:00:04]}  Qd8 {[%clk 0:00:02]} 33. Nd2 {[%clk 0:00:03]} 1-0


[Site "https://www.chess.com"]

[Event "Titled Tuesday Blitz May 11 2021"]
[White "dropstoneDP"]
[Black "Oparin, Grigoriy"]
[BlackFideId "24125890"]
[WhiteElo "2907"]
[BlackElo "2628"]
[Result "1-0"]
[Round "07"]
[TimeControl "180+1"]
[Date "2021.05.11"]
[WhiteClock "0:01:46"]
[BlackClock "0:01:04"]

1. e4 {[%clk 0:03:00]}  c5 {[%clk 0:02:59]} 2. h3 {[%clk 0:02:57]}  Nc6 {[%clk 0:02:58]} 3. Bb5 {[%clk 0:02:57]}  g6 {[%clk 0:02:57]} 4. Bxc6 {[%clk 0:02:55]}  bxc6 {[%clk 0:02:56]} 5. Nc3 {[%clk 0:02:52]}  Bg7 {[%clk 0:02:57]} 6. d3 {[%clk 0:02:53]}  c4 {[%clk 0:02:53]} 7. d4 {[%clk 0:02:51]}  d5 {[%clk 0:02:45]} 8. Nf3 {[%clk 0:02:51]}  dxe4 {[%clk 0:02:43]} 9. Nxe4 {[%clk 0:02:52]}  Nf6 {[%clk 0:02:44]} 10. Nxf6+ {[%clk 0:02:50]}  Bxf6 {[%clk 0:02:43]} 11. Bh6 {[%clk 0:02:46]}  Bf5 {[%clk 0:02:38]} 12. O-O {[%clk 0:02:45]}  Be4 {[%clk 0:02:38]} 13. Re1 {[%clk 0:02:43]}  Bd5 {[%clk 0:02:35]} 14. Ne5 {[%clk 0:02:40]}  Qb6 {[%clk 0:02:24]} 15. c3 {[%clk 0:02:07]}  O-O-O {[%clk 0:02:22]} 16. Qg4+ {[%clk 0:02:03]}  Be6 {[%clk 0:02:06]} 17. Nxc4 {[%clk 0:01:56]}  Qb5 {[%clk 0:01:23]} 18. Rxe6 {[%clk 0:01:55]}  fxe6 {[%clk 0:01:24]} 19. Qxe6+ {[%clk 0:01:56]}  Kb7 {[%clk 0:01:25]} 20. b4 {[%clk 0:01:52]}  Qd5 {[%clk 0:01:22]} 21. Na5+ {[%clk 0:01:52]}  Kb6 {[%clk 0:01:21]} 22. Qe2 {[%clk 0:01:49]}  Rhe8 {[%clk 0:01:10]} 23. c4 {[%clk 0:01:46]}  Qxd4 {[%clk 0:01:04]} 24. Be3 {[%clk 0:01:46]} 1-0


[Site "https://www.chess.com"]

[Event "Titled Tuesday Blitz May 11 2021"]
[White "Acor, Corey"]
[Black "Lintchevski, Daniil"]
[WhiteFideId "2024861"]
[BlackFideId "4171055"]
[WhiteElo "2810"]
[BlackElo "2505"]
[Result "0-1"]
[Round "08"]
[TimeControl "180+1"]
[Date "2021.05.11"]
[WhiteClock "0:00:02"]
[BlackClock "0:00:18"]

1. e4 {[%clk 0:03:00]}  c6 {[%clk 0:03:00]} 2. d3 {[%clk 0:03:00]}  d5 {[%clk 0:03:00]} 3. Nd2 {[%clk 0:03:01]}  e5 {[%clk 0:03:01]} 4. g3 {[%clk 0:03:01]}  Bd6 {[%clk 0:03:01]} 5. Bg2 {[%clk 0:03:01]}  Nf6 {[%clk 0:03:02]} 6. Ngf3 {[%clk 0:03:02]}  O-O {[%clk 0:03:02]} 7. O-O {[%clk 0:03:02]}  Re8 {[%clk 0:03:03]} 8. b3 {[%clk 0:03:02]}  Nbd7 {[%clk 0:03:02]} 9. Bb2 {[%clk 0:03:03]}  a5 {[%clk 0:03:03]} 10. a4 {[%clk 0:03:02]}  b6 {[%clk 0:03:00]} 11. Re1 {[%clk 0:02:55]}  Ba6 {[%clk 0:02:59]} 12. d4 {[%clk 0:02:54]}  Qc7 {[%clk 0:02:47]} 13. dxe5 {[%clk 0:02:41]}  Nxe5 {[%clk 0:02:47]} 14. Nd4 {[%clk 0:02:37]}  Rad8 {[%clk 0:02:35]} 15. f4 {[%clk 0:02:01]}  dxe4 {[%clk 0:02:26]} 16. fxe5 {[%clk 0:02:01]}  Bxe5 {[%clk 0:02:27]} 17. c3 {[%clk 0:02:01]}  c5 {[%clk 0:02:26]} 18. Nxe4 {[%clk 0:01:36]}  cxd4 {[%clk 0:02:22]} 19. cxd4 {[%clk 0:01:37]}  Nxe4 {[%clk 0:02:12]} 20. Rxe4 {[%clk 0:01:37]}  Bb7 {[%clk 0:02:07]} 21. Re2 {[%clk 0:01:27]}  Bxg2 {[%clk 0:02:00]} 22. Rxg2 {[%clk 0:01:20]}  Bf6 {[%clk 0:01:56]} 23. Rc1 {[%clk 0:01:11]}  Qd7 {[%clk 0:01:56]} 24. Rc4 {[%clk 0:01:09]}  b5 {[%clk 0:01:48]} 25. axb5 {[%clk 0:01:06]}  Qxb5 {[%clk 0:01:49]} 26. Rd2 {[%clk 0:01:02]}  Bg5 {[%clk 0:01:43]} 27. Rdc2 {[%clk 0:01:00]}  Be3+ {[%clk 0:01:43]} 28. Kg2 {[%clk 0:01:00]}  Qxb3 {[%clk 0:01:38]} 29. Qf3 {[%clk 0:00:52]}  h6 {[%clk 0:01:23]} 30. R4c3 {[%clk 0:00:44]}  Qe6 {[%clk 0:01:23]} 31. Re2 {[%clk 0:00:44]}  Qb6 {[%clk 0:01:01]} 32. Rcxe3 {[%clk 0:00:43]}  Rxe3 {[%clk 0:00:58]} 33. Qxe3 {[%clk 0:00:43]}  a4 {[%clk 0:00:57]} 34. Rd2 {[%clk 0:00:36]}  Rd6 {[%clk 0:00:48]} 35. Qe8+ {[%clk 0:00:31]}  Kh7 {[%clk 0:00:48]} 36. Qxf7 {[%clk 0:00:25]}  Rf6 {[%clk 0:00:48]} 37. Qd5 {[%clk 0:00:25]}  Qb4 {[%clk 0:00:46]} 38. Qe4+ {[%clk 0:00:24]}  Kh8 {[%clk 0:00:46]} 39. Qd3 {[%clk 0:00:23]}  Qb7+ {[%clk 0:00:44]} 40. d5 {[%clk 0:00:23]}  Rb6 {[%clk 0:00:42]} 41. Qd4 {[%clk 0:00:19]}  Rb5 {[%clk 0:00:34]} 42. Ba3 {[%clk 0:00:13]}  Rb3 {[%clk 0:00:32]} 43. Qc5 {[%clk 0:00:09]}  Kh7 {[%clk 0:00:26]} 44. Qc2+ {[%clk 0:00:06]}  Kg8 {[%clk 0:00:26]} 45. Qc5 {[%clk 0:00:05]}  Kh7 {[%clk 0:00:25]} 46. h4 {[%clk 0:00:06]}  Qf7 {[%clk 0:00:25]} 47. Rf2 {[%clk 0:00:05]}  Qg6 {[%clk 0:00:25]} 48. d6 {[%clk 0:00:03]}  Qxg3+ {[%clk 0:00:21]} 49. Kf1 {[%clk 0:00:02]}  Qh3+ {[%clk 0:00:20]} 50. Ke2 {[%clk 0:00:02]}  Qd3+ {[%clk 0:00:20]} 51. Ke1 {[%clk 0:00:02]}  Rxa3 {[%clk 0:00:20]} 52. Rd2 {[%clk 0:00:01]}  Qg3+ {[%clk 0:00:20]} 53. Kd1 {[%clk 0:00:01]}  Ra1+ {[%clk 0:00:19]} 54. Ke2 {[%clk 0:00:01]}  Qg2+ {[%clk 0:00:19]} 55. Qf2 {[%clk 0:00:01]}  Qe4+ {[%clk 0:00:18]} 56. Qe3 {[%clk 0:00:02]}  Qg4+ {[%clk 0:00:18]} 57. Kd3 {[%clk 0:00:02]}  Ra3+ {[%clk 0:00:18]} 0-1


[Site "https://www.chess.com"]